[Event "Early-Titled-Tuesday-Blitz-September-12-2023"]
[Site "Chess.com"]
[Date "2023.09.12"]
[Round "10"]
[White "MartinMatthiesen"]
[Black "Daniel_Salinas"]
[Result "1-0"]
[WhiteElo "2531"]
[BlackElo "2379"]
[TimeControl "180+1"]
[EndTime "9:56:13 PDT"]
[Termination "MartinMatthiesen won on time"]

1. d4 {[%clk 0:02:59.5]} 1... d5 {[%clk 0:02:56.3]} 2. Bf4 {[%clk 0:02:58.2]}
2... c5 {[%clk 0:02:56.4]} 3. e3 {[%clk 0:02:58]} 3... Nf6 {[%clk 0:02:56.7]} 4.
Nf3 {[%clk 0:02:57.7]} 4... e6 {[%clk 0:02:57.2]} 5. Nbd2 {[%clk 0:02:56.5]}
5... Bd6 {[%clk 0:02:57.8]} 6. Bg3 {[%clk 0:02:53.9]} 6... Qc7 {[%clk
0:02:58.2]} 7. c4 {[%clk 0:02:45.8]} 7... Bxg3 {[%clk 0:02:48]} 8. hxg3 {[%clk
0:02:44.9]} 8... cxd4 {[%clk 0:02:48.7]} 9. Nxd4 {[%clk 0:02:43.1]} 9... Nc6
{[%clk 0:02:48.4]} 10. Nb5 {[%clk 0:02:40.4]} 10... Qe7 {[%clk 0:02:48.4]} 11.
cxd5 {[%clk 0:02:36.4]} 11... exd5 {[%clk 0:02:46.6]} 12. Nf3 {[%clk 0:02:32.5]}
12... Bg4 {[%clk 0:02:45.6]} 13. Be2 {[%clk 0:02:25.4]} 13... Bxf3 {[%clk
0:02:45.9]} 14. gxf3 {[%clk 0:02:25]} 14... Qb4+ {[%clk 0:02:46]} 15. Qd2 {[%clk
0:02:24.8]} 15... Qxd2+ {[%clk 0:02:43.2]} 16. Kxd2 {[%clk 0:02:24.4]} 16... O-O
{[%clk 0:02:38]} 17. g4 {[%clk 0:02:16.7]} 17... a6 {[%clk 0:02:23.1]} 18. Nd4
{[%clk 0:02:09.2]} 18... Nxd4 {[%clk 0:02:22.2]} 19. exd4 {[%clk 0:02:10.1]}
19... Rfe8 {[%clk 0:02:07]} 20. Bd3 {[%clk 0:02:05.9]} 20... g6 {[%clk
0:02:03.6]} 21. Rh4 {[%clk 0:01:54.8]} 21... Nd7 {[%clk 0:02:03.2]} 22. Rah1
{[%clk 0:01:50.2]} 22... Nf8 {[%clk 0:02:02.7]} 23. f4 {[%clk 0:01:50.3]} 23...
Re6 {[%clk 0:01:46.3]} 24. f5 {[%clk 0:01:48]} 24... Rb6 {[%clk 0:01:45.8]} 25.
b3 {[%clk 0:01:47.4]} 25... Rb4 {[%clk 0:01:43]} 26. g5 {[%clk 0:01:37.9]} 26...
a5 {[%clk 0:01:37.4]} 27. Bc2 {[%clk 0:01:35.4]} 27... Rc8 {[%clk 0:01:02.3]}
28. R1h3 {[%clk 0:01:32]} 28... a4 {[%clk 0:00:38.3]} 29. Rc3 {[%clk 0:00:58.5]}
29... Re8 {[%clk 0:00:16.6]} 30. a3 {[%clk 0:00:48.3]} 30... Rb6 {[%clk
0:00:13.3]} 31. b4 {[%clk 0:00:48.6]} 31... f6 {[%clk 0:00:10.6]} 32. fxg6
{[%clk 0:00:45.8]} 32... hxg6 {[%clk 0:00:09.6]} 33. Bxa4 {[%clk 0:00:43]} 33...
fxg5 {[%clk 0:00:06.6]} 34. Rg4 {[%clk 0:00:37.9]} 34... Re4 {[%clk 0:00:06]}
35. f3 {[%clk 0:00:33.4]} 35... Rxg4 {[%clk 0:00:04.9]} 36. fxg4 {[%clk
0:00:34.3]} 36... Rf6 {[%clk 0:00:03.3]} 37. Bb3 {[%clk 0:00:32.7]} 37... Rf4
{[%clk 0:00:03.5]} 38. Bxd5+ {[%clk 0:00:32.3]} 38... Kg7 {[%clk 0:00:04]} 39.
Rc7+ {[%clk 0:00:31.6]} 39... Kh6 {[%clk 0:00:04.6]} 40. Ke3 {[%clk 0:00:25.5]}
40... Rxg4 {[%clk 0:00:03.9]} 41. Rxb7 {[%clk 0:00:25.6]} 41... Rg3+ {[%clk
0:00:04.3]} 42. Kf2 {[%clk 0:00:23.2]} 42... Rxa3 {[%clk 0:00:04.5]} 43. Bf3
{[%clk 0:00:20.8]} 43... Ne6 {[%clk 0:00:03.6]} 44. d5 {[%clk 0:00:17.4]} 44...
Nd4 {[%clk 0:00:02.1]} 45. Be4 {[%clk 0:00:16.6]} 1-0

[Event "Early-Titled-Tuesday-Blitz-September-12-2023"]
[Site "Chess.com"]
[Date "2023.09.12"]
[Round "10"]
[White "CSB7"]
[Black "Fandorine"]
[Result "0-1"]
[WhiteElo "2714"]
[BlackElo "2909"]
[TimeControl "180+1"]
[EndTime "9:56:14 PDT"]
[Termination "Fandorine won by checkmate"]

1. e4 {[%clk 0:03:00.9]} 1... e5 {[%clk 0:02:57.3]} 2. Nf3 {[%clk 0:03:00.6]}
2... Nc6 {[%clk 0:02:57.6]} 3. Bc4 {[%clk 0:02:59.5]} 3... Nf6 {[%clk
0:02:57.5]} 4. d3 {[%clk 0:02:55.6]} 4... Be7 {[%clk 0:02:53.4]} 5. O-O {[%clk
0:02:47.7]} 5... O-O {[%clk 0:02:53.3]} 6. Nc3 {[%clk 0:02:46]} 6... d6 {[%clk
0:02:51.4]} 7. a4 {[%clk 0:02:46.6]} 7... Bg4 {[%clk 0:02:48.1]} 8. h3 {[%clk
0:02:44.5]} 8... Bh5 {[%clk 0:02:48.3]} 9. Be3 {[%clk 0:02:42.8]} 9... Qc8
{[%clk 0:02:47.6]} 10. Nd5 {[%clk 0:02:35.3]} 10... Nxd5 {[%clk 0:02:46.5]} 11.
Bxd5 {[%clk 0:02:36.2]} 11... Kh8 {[%clk 0:02:43.7]} 12. g4 {[%clk 0:02:33.4]}
12... Bg6 {[%clk 0:02:43]} 13. c3 {[%clk 0:02:19.1]} 13... Nd8 {[%clk 0:02:41]}
14. b4 {[%clk 0:02:15.1]} 14... Ne6 {[%clk 0:02:38.5]} 15. Kg2 {[%clk 0:02:06]}
15... c6 {[%clk 0:02:34.8]} 16. Bb3 {[%clk 0:02:04.4]} 16... Qd7 {[%clk
0:02:21.2]} 17. Qe2 {[%clk 0:01:40]} 17... Rae8 {[%clk 0:02:16.5]} 18. a5 {[%clk
0:01:38.4]} 18... Bd8 {[%clk 0:02:15.5]} 19. Rfd1 {[%clk 0:01:35.3]} 19... Bc7
{[%clk 0:02:10]} 20. Kh1 {[%clk 0:01:16.9]} 20... d5 {[%clk 0:02:06.2]} 21. exd5
{[%clk 0:01:15.3]} 21... cxd5 {[%clk 0:02:06.7]} 22. Ba4 {[%clk 0:01:15.9]}
22... Qd6 {[%clk 0:02:05.7]} 23. Bc5 {[%clk 0:01:01.9]} 23... Nxc5 {[%clk
0:02:01.8]} 24. bxc5 {[%clk 0:01:02.8]} 24... Qf6 {[%clk 0:01:53.2]} 25. Bxe8
{[%clk 0:01:02]} 25... e4 {[%clk 0:01:53.6]} 26. Bd7 {[%clk 0:00:48.8]} 26...
exf3 {[%clk 0:01:31]} 27. Qf1 {[%clk 0:00:49]} 27... Qxc3 {[%clk 0:01:00.6]} 28.
d4 {[%clk 0:00:31.3]} 28... Qc2 {[%clk 0:00:43.7]} 29. a6 {[%clk 0:00:22]} 29...
b6 {[%clk 0:00:28.7]} 30. Bc6 {[%clk 0:00:13.9]} 30... Be4 {[%clk 0:00:14.4]}
31. Rac1 {[%clk 0:00:10.3]} 31... Qe2 {[%clk 0:00:14.4]} 32. Re1 {[%clk
0:00:08.9]} 32... Qd2 {[%clk 0:00:13.7]} 33. Rcd1 {[%clk 0:00:04.6]} 33... Qf4
{[%clk 0:00:13.2]} 34. Qg1 {[%clk 0:00:05.4]} 34... bxc5 {[%clk 0:00:13]} 35.
dxc5 {[%clk 0:00:05.5]} 35... f5 {[%clk 0:00:13.6]} 36. g5 {[%clk 0:00:03.5]}
36... Qh4 {[%clk 0:00:13.3]} 37. Qf1 {[%clk 0:00:02.4]} 37... h6 {[%clk
0:00:09]} 38. Bxd5 {[%clk 0:00:02.4]} 38... hxg5 {[%clk 0:00:09.6]} 39. Bxe4
{[%clk 0:00:02.4]} 39... fxe4 {[%clk 0:00:10.5]} 40. Rd4 {[%clk 0:00:02.4]}
40... Re8 {[%clk 0:00:07.2]} 41. Rd5 {[%clk 0:00:01.4]} 41... Qf4 {[%clk
0:00:05.9]} 42. Rd7 {[%clk 0:00:01.9]} 42... Qh2# {[%clk 0:00:05.6]} 0-1

[Event "Early-Titled-Tuesday-Blitz-September-12-2023"]
[Site "Chess.com"]
[Date "2023.09.12"]
[Round "10"]
[White "DeArron_Fox"]
[Black "pirulillo"]
[Result "0-1"]
[WhiteElo "2483"]
[BlackElo "2329"]
[TimeControl "180+1"]
[EndTime "9:56:16 PDT"]
[Termination "pirulillo won by checkmate"]

1. d4 {[%clk 0:03:00.9]} 1... Nf6 {[%clk 0:02:59.5]} 2. c4 {[%clk 0:03:00.5]}
2... g6 {[%clk 0:03:00]} 3. Nc3 {[%clk 0:03:00.5]} 3... Bg7 {[%clk 0:03:00.6]}
4. e4 {[%clk 0:03:01.1]} 4... d6 {[%clk 0:03:00.7]} 5. f3 {[%clk 0:03:01.7]}
5... O-O {[%clk 0:03:01.3]} 6. Be3 {[%clk 0:03:02.4]} 6... b6 {[%clk 0:03:00.8]}
7. Qd2 {[%clk 0:03:01.9]} 7... c5 {[%clk 0:03:00.9]} 8. Nge2 {[%clk 0:03:01.9]}
8... Re8 {[%clk 0:03:00.9]} 9. O-O-O {[%clk 0:03:02.4]} 9... Qd7 {[%clk
0:02:52.5]} 10. h4 {[%clk 0:03:00.8]} 10... h5 {[%clk 0:02:48.2]} 11. g3 {[%clk
0:02:47.1]} 11... Bb7 {[%clk 0:02:42.9]} 12. Bh3 {[%clk 0:02:41.5]} 12... Qd8
{[%clk 0:02:29.2]} 13. d5 {[%clk 0:02:38.6]} 13... Nbd7 {[%clk 0:02:22.3]} 14.
f4 {[%clk 0:02:30.3]} 14... a6 {[%clk 0:02:17.9]} 15. Rdg1 {[%clk 0:02:22.8]}
15... b5 {[%clk 0:02:12.9]} 16. Qc2 {[%clk 0:02:14.3]} 16... Nb6 {[%clk
0:02:02.8]} 17. b3 {[%clk 0:02:05.7]} 17... bxc4 {[%clk 0:02:02]} 18. g4 {[%clk
0:02:04.3]} 18... cxb3 {[%clk 0:01:54.8]} 19. axb3 {[%clk 0:02:05.2]} 19... hxg4
{[%clk 0:01:48.3]} 20. Bxg4 {[%clk 0:02:01.8]} 20... Nxg4 {[%clk 0:01:49.2]} 21.
Rxg4 {[%clk 0:02:01.6]} 21... a5 {[%clk 0:01:33]} 22. h5 {[%clk 0:01:31.7]}
22... a4 {[%clk 0:01:18.3]} 23. hxg6 {[%clk 0:01:31.5]} 23... f5 {[%clk
0:01:13.4]} 24. exf5 {[%clk 0:01:15.5]} 24... Nxd5 {[%clk 0:01:02.4]} 25. Qe4
{[%clk 0:01:08.1]} 25... e6 {[%clk 0:00:30.6]} 26. fxe6 {[%clk 0:01:04.6]} 26...
Nxc3 {[%clk 0:00:29.1]} 27. Qxb7 {[%clk 0:00:59.9]} 27... Re7 {[%clk 0:00:29.2]}
28. Qf3 {[%clk 0:00:42.8]} 28... Nxe2+ {[%clk 0:00:19.5]} 29. Qxe2 {[%clk
0:00:42]} 29... a3 {[%clk 0:00:19.9]} 30. Qh2 {[%clk 0:00:08.9]} 30... a2 {[%clk
0:00:19.4]} 31. Qh7+ {[%clk 0:00:08.4]} 31... Kf8 {[%clk 0:00:19.9]} 32. Kc2
{[%clk 0:00:09.3]} 32... Rxe6 {[%clk 0:00:18.5]} 33. Rg5 {[%clk 0:00:04.3]}
33... Qf6 {[%clk 0:00:17.7]} 34. Rhh5 {[%clk 0:00:02.3]} 34... Qc3+ {[%clk
0:00:17]} 35. Kd1 {[%clk 0:00:02.8]} 35... a1=Q+ {[%clk 0:00:17.2]} 36. Ke2
{[%clk 0:00:03.7]} 36... Qab2+ {[%clk 0:00:17.1]} 37. Kf3 {[%clk 0:00:03.2]}
37... Qxe3+ {[%clk 0:00:17.6]} 38. Kg4 {[%clk 0:00:04.1]} 38... Qbe2+ {[%clk
0:00:17.2]} 39. Kh4 {[%clk 0:00:04]} 39... Qh2+ {[%clk 0:00:17.2]} 40. Kg4
{[%clk 0:00:04]} 40... Qeg3+ {[%clk 0:00:16.9]} 41. Kf5 {[%clk 0:00:04.2]} 41...
Qxf4+ {[%clk 0:00:15.7]} 42. Kxe6 {[%clk 0:00:04.1]} 42... Qe5+ {[%clk
0:00:15.9]} 43. Kd7 {[%clk 0:00:04.1]} 43... Qe7+ {[%clk 0:00:16.4]} 44. Kc6
{[%clk 0:00:03.1]} 44... Rc8+ {[%clk 0:00:16.9]} 45. Kd5 {[%clk 0:00:01.5]}
45... Qd2+ {[%clk 0:00:16.4]} 46. Kc4 {[%clk 0:00:01.5]} 46... Qd4+ {[%clk
0:00:16.6]} 47. Kb5 {[%clk 0:00:01.9]} 47... Qb4+ {[%clk 0:00:16.7]} 48. Ka6
{[%clk 0:00:01.8]} 48... Qeb7# {[%clk 0:00:17.3]} 0-1

[Event "Early-Titled-Tuesday-Blitz-September-12-2023"]
[Site "Chess.com"]
[Date "2023.09.12"]
[Round "10"]
[White "DenLaz"]
[Black "jguerramzllo"]
[Result "1/2-1/2"]
[WhiteElo "3062"]
[BlackElo "2885"]
[TimeControl "180+1"]
[EndTime "9:56:17 PDT"]
[Termination "Game drawn by repetition"]

1. Nf3 {[%clk 0:03:00.9]} 1... d5 {[%clk 0:02:58.2]} 2. d4 {[%clk 0:03:01.1]}
2... e6 {[%clk 0:02:57.9]} 3. c4 {[%clk 0:03:01.5]} 3... Nf6 {[%clk 0:02:57]} 4.
Nc3 {[%clk 0:03:02.1]} 4... Be7 {[%clk 0:02:57.1]} 5. Bg5 {[%clk 0:03:01.6]}
5... O-O {[%clk 0:02:56]} 6. e3 {[%clk 0:03:01.8]} 6... Nbd7 {[%clk 0:02:51.7]}
7. Qc2 {[%clk 0:02:59.9]} 7... h6 {[%clk 0:02:40.7]} 8. cxd5 {[%clk 0:02:59.6]}
8... exd5 {[%clk 0:02:23.5]} 9. Bf4 {[%clk 0:02:58.3]} 9... c6 {[%clk
0:02:21.6]} 10. Bd3 {[%clk 0:02:57.5]} 10... Re8 {[%clk 0:02:19.7]} 11. h3
{[%clk 0:02:56.7]} 11... Nb6 {[%clk 0:02:08.9]} 12. O-O {[%clk 0:02:54.2]} 12...
Bd6 {[%clk 0:02:07.4]} 13. Bxd6 {[%clk 0:02:51.9]} 13... Qxd6 {[%clk 0:02:07.1]}
14. Ne5 {[%clk 0:02:52.5]} 14... Be6 {[%clk 0:02:02.1]} 15. f4 {[%clk
0:02:52.4]} 15... Rac8 {[%clk 0:01:56.1]} 16. Rac1 {[%clk 0:02:44.3]} 16... Bd7
{[%clk 0:01:47.3]} 17. Qf2 {[%clk 0:02:29.7]} 17... c5 {[%clk 0:01:36.8]} 18.
Rcd1 {[%clk 0:02:19.1]} 18... cxd4 {[%clk 0:01:34.6]} 19. exd4 {[%clk 0:02:20]}
19... Nc4 {[%clk 0:01:32.4]} 20. Rfe1 {[%clk 0:02:12.7]} 20... b5 {[%clk
0:01:31.4]} 21. Nb1 {[%clk 0:01:58]} 21... Rc7 {[%clk 0:01:24.5]} 22. b3 {[%clk
0:01:57.6]} 22... Nb6 {[%clk 0:01:17.4]} 23. Nd2 {[%clk 0:01:56.7]} 23... a6
{[%clk 0:01:15.4]} 24. Re3 {[%clk 0:01:53.7]} 24... Rec8 {[%clk 0:01:08.9]} 25.
Rde1 {[%clk 0:01:52.8]} 25... Rc3 {[%clk 0:01:07.6]} 26. Qh4 {[%clk 0:01:46.5]}
26... Kf8 {[%clk 0:01:03.9]} 27. Ndf3 {[%clk 0:01:24.6]} 27... Rc1 {[%clk
0:01:01.5]} 28. Kh2 {[%clk 0:01:20.5]} 28... Qb4 {[%clk 0:00:49.9]} 29. Qf2
{[%clk 0:01:00.2]} 29... Rxe1 {[%clk 0:00:45.5]} 30. Rxe1 {[%clk 0:01:01.1]}
30... Be8 {[%clk 0:00:41.1]} 31. Nh4 {[%clk 0:00:57.6]} 31... Rc3 {[%clk
0:00:35.5]} 32. Nf5 {[%clk 0:00:56.8]} 32... Nbd7 {[%clk 0:00:23.5]} 33. Qg3
{[%clk 0:00:50.4]} 33... Nh5 {[%clk 0:00:19.6]} 34. Qh4 {[%clk 0:00:36.7]} 34...
Nxe5 {[%clk 0:00:16.8]} 35. Rxe5 {[%clk 0:00:35.5]} 35... Nf6 {[%clk 0:00:09.9]}
36. Qg3 {[%clk 0:00:34.2]} 36... g6 {[%clk 0:00:08.7]} 37. Nxh6 {[%clk
0:00:28.3]} 37... Qxd4 {[%clk 0:00:08.3]} 38. Qg5 {[%clk 0:00:21.6]} 38... Qxd3
{[%clk 0:00:05.8]} 39. Nf5 {[%clk 0:00:05.4]} 39... gxf5 {[%clk 0:00:03.1]} 40.
Qh6+ {[%clk 0:00:05.8]} 40... Kg8 {[%clk 0:00:03.5]} 41. Qg5+ {[%clk 0:00:06.3]}
41... Kf8 {[%clk 0:00:03.2]} 42. Qh6+ {[%clk 0:00:06.7]} 42... Kg8 {[%clk
0:00:03.5]} 43. Qg5+ {[%clk 0:00:04.2]} 43... Kf8 {[%clk 0:00:02.9]} 1/2-1/2

[Event "Early-Titled-Tuesday-Blitz-September-12-2023"]
[Site "Chess.com"]
[Date "2023.09.12"]
[Round "10"]
[White "fireheart92"]
[Black "FabianoCaruana"]
[Result "1-0"]
[WhiteElo "2974"]
[BlackElo "3058"]
[TimeControl "180+1"]
[EndTime "9:56:20 PDT"]
[Termination "fireheart92 won by resignation"]

1. b3 {[%clk 0:03:00.9]} 1... b6 {[%clk 0:02:57.5]} 2. e4 {[%clk 0:02:59.7]}
2... Bb7 {[%clk 0:02:57.8]} 3. Nc3 {[%clk 0:03:00.2]} 3... c5 {[%clk 0:02:57.8]}
4. Bb2 {[%clk 0:02:59.9]} 4... e6 {[%clk 0:02:58.1]} 5. Nf3 {[%clk 0:02:56.5]}
5... Nf6 {[%clk 0:02:58.6]} 6. e5 {[%clk 0:02:51.9]} 6... Nd5 {[%clk 0:02:55.6]}
7. Nxd5 {[%clk 0:02:51.2]} 7... Bxd5 {[%clk 0:02:55.4]} 8. h4 {[%clk 0:02:52.1]}
8... Be7 {[%clk 0:02:52.7]} 9. Bd3 {[%clk 0:02:32.7]} 9... h6 {[%clk 0:02:44.8]}
10. Qe2 {[%clk 0:02:31.3]} 10... Qc7 {[%clk 0:02:44.7]} 11. Rh3 {[%clk
0:02:09.9]} 11... Bb7 {[%clk 0:02:33.2]} 12. Rg3 {[%clk 0:02:08.2]} 12... g6
{[%clk 0:02:33.1]} 13. a3 {[%clk 0:01:55.6]} 13... Nc6 {[%clk 0:02:32.3]} 14.
O-O-O {[%clk 0:01:51.1]} 14... O-O-O {[%clk 0:02:32]} 15. Rg4 {[%clk 0:01:51.3]}
15... Rhe8 {[%clk 0:02:24.1]} 16. Qe3 {[%clk 0:01:46.4]} 16... h5 {[%clk
0:02:23.7]} 17. Rf4 {[%clk 0:01:45]} 17... Rf8 {[%clk 0:02:21.6]} 18. Ng5 {[%clk
0:01:42.7]} 18... Bxg5 {[%clk 0:02:21.3]} 19. hxg5 {[%clk 0:01:43.6]} 19... Ne7
{[%clk 0:02:19]} 20. Qg3 {[%clk 0:01:31]} 20... Kb8 {[%clk 0:02:19.1]} 21. Kb1
{[%clk 0:01:31]} 21... a6 {[%clk 0:02:14.7]} 22. Re1 {[%clk 0:01:25.3]} 22...
Ka7 {[%clk 0:02:14.6]} 23. f3 {[%clk 0:01:18.8]} 23... Rc8 {[%clk 0:02:14.3]}
24. Qf2 {[%clk 0:01:17.5]} 24... Ka8 {[%clk 0:02:03.8]} 25. Ra4 {[%clk
0:01:15.7]} 25... a5 {[%clk 0:01:58.5]} 26. Rh4 {[%clk 0:01:15.5]} 26... Bc6
{[%clk 0:01:57.2]} 27. g4 {[%clk 0:01:10.6]} 27... hxg4 {[%clk 0:01:34]} 28.
fxg4 {[%clk 0:01:11.5]} 28... a4 {[%clk 0:01:31.7]} 29. bxa4 {[%clk 0:01:11.5]}
29... Bxa4 {[%clk 0:01:32.6]} 30. Rh7 {[%clk 0:01:11.2]} 30... Nd5 {[%clk
0:01:13.1]} 31. Rxf7 {[%clk 0:01:09.9]} 31... Rg8 {[%clk 0:01:13.1]} 32. c4
{[%clk 0:01:07.1]} 32... Bb3 {[%clk 0:00:57.2]} 33. cxd5 {[%clk 0:01:06]} 33...
Bxd5 {[%clk 0:00:58.1]} 34. Rc1 {[%clk 0:01:04.7]} 34... Qc6 {[%clk 0:00:55.1]}
35. Qe2 {[%clk 0:00:59.7]} 35... c4 {[%clk 0:00:46.9]} 36. Bc2 {[%clk
0:00:52.4]} 36... Rh8 {[%clk 0:00:47.1]} 37. Rf4 {[%clk 0:00:48.8]} 37... Rh3
{[%clk 0:00:46.1]} 38. Be4 {[%clk 0:00:48.4]} 38... Rb3 {[%clk 0:00:45.4]} 39.
Bxd5 {[%clk 0:00:48]} 39... exd5 {[%clk 0:00:46.3]} 40. Rc3 {[%clk 0:00:46.2]}
40... Rb5 {[%clk 0:00:44.7]} 41. d3 {[%clk 0:00:40.6]} 41... Rc5 {[%clk
0:00:31.5]} 42. dxc4 {[%clk 0:00:40.8]} 42... dxc4 {[%clk 0:00:32.4]} 43. Qe4
{[%clk 0:00:41]} 43... Kb7 {[%clk 0:00:28.9]} 44. Qxc6+ {[%clk 0:00:40.1]} 44...
R8xc6 {[%clk 0:00:29.8]} 45. Rf6 {[%clk 0:00:31.2]} 45... Rxe5 {[%clk
0:00:30.1]} 46. Rxc6 {[%clk 0:00:30.5]} 46... dxc6 {[%clk 0:00:31]} 47. Rxc4
{[%clk 0:00:29.6]} 47... Rxg5 {[%clk 0:00:31.6]} 48. Bf6 {[%clk 0:00:29.2]}
48... Rd5 {[%clk 0:00:27.2]} 49. Rd4 {[%clk 0:00:29.3]} 49... Rc5 {[%clk
0:00:27.2]} 50. g5 {[%clk 0:00:27.8]} 50... Ka6 {[%clk 0:00:23.6]} 51. Rd7
{[%clk 0:00:27.5]} 51... Kb5 {[%clk 0:00:22.3]} 52. Kb2 {[%clk 0:00:24.8]} 52...
Rc4 {[%clk 0:00:19.9]} 53. Rd4 {[%clk 0:00:24.5]} 53... Rc5 {[%clk 0:00:19.8]}
54. Re4 {[%clk 0:00:24.8]} 54... Rf5 {[%clk 0:00:19.7]} 55. Re5+ {[%clk
0:00:24.4]} 55... Rxe5 {[%clk 0:00:20.2]} 56. Bxe5 {[%clk 0:00:25.3]} 56... c5
{[%clk 0:00:21]} 57. Kc3 {[%clk 0:00:24.2]} 57... Kc6 {[%clk 0:00:21.5]} 58. a4
{[%clk 0:00:23.4]} 58... b5 {[%clk 0:00:22]} 59. axb5+ {[%clk 0:00:23.5]} 59...
Kxb5 {[%clk 0:00:22.9]} 60. Bf6 {[%clk 0:00:23]} 1-0

[Event "Early-Titled-Tuesday-Blitz-September-12-2023"]
[Site "Chess.com"]
[Date "2023.09.12"]
[Round "10"]
[White "nss13"]
[Black "Dr_crypt"]
[Result "1-0"]
[WhiteElo "2558"]
[BlackElo "2419"]
[TimeControl "180+1"]
[EndTime "9:56:20 PDT"]
[Termination "nss13 won on time"]

1. e4 {[%clk 0:03:00.9]} 1... d5 {[%clk 0:03:00.1]} 2. exd5 {[%clk 0:03:00.7]}
2... Qxd5 {[%clk 0:03:01]} 3. Nc3 {[%clk 0:03:01]} 3... Qd6 {[%clk 0:03:01.5]}
4. d4 {[%clk 0:03:00.2]} 4... c6 {[%clk 0:03:01.2]} 5. Nf3 {[%clk 0:02:57.1]}
5... Bf5 {[%clk 0:03:00.3]} 6. Ne5 {[%clk 0:02:56.8]} 6... Nd7 {[%clk
0:02:59.9]} 7. Bf4 {[%clk 0:02:57.1]} 7... Nxe5 {[%clk 0:02:59.7]} 8. Bxe5
{[%clk 0:02:56.1]} 8... Qd7 {[%clk 0:02:59.7]} 9. Qd2 {[%clk 0:02:54.4]} 9... e6
{[%clk 0:02:59.3]} 10. O-O-O {[%clk 0:02:54.5]} 10... Nf6 {[%clk 0:02:55.9]} 11.
f3 {[%clk 0:02:54]} 11... h5 {[%clk 0:02:51.9]} 12. Bd3 {[%clk 0:02:49.9]} 12...
Bxd3 {[%clk 0:02:50.9]} 13. Qxd3 {[%clk 0:02:50.8]} 13... Be7 {[%clk 0:02:34.6]}
14. Kb1 {[%clk 0:02:42.8]} 14... O-O-O {[%clk 0:02:32.4]} 15. Ne4 {[%clk
0:02:20.4]} 15... Nxe4 {[%clk 0:02:28.7]} 16. fxe4 {[%clk 0:02:11.2]} 16... f6
{[%clk 0:02:20.2]} 17. Bg3 {[%clk 0:02:09.8]} 17... h4 {[%clk 0:02:11]} 18. Bf2
{[%clk 0:02:09.3]} 18... Rh5 {[%clk 0:02:11.1]} 19. Qf3 {[%clk 0:02:03.4]} 19...
Qe8 {[%clk 0:02:07.1]} 20. Qg4 {[%clk 0:01:48.3]} 20... Qf7 {[%clk 0:02:02.1]}
21. Rhf1 {[%clk 0:01:25]} 21... f5 {[%clk 0:01:57.4]} 22. Bg1 {[%clk 0:01:14.1]}
22... fxg4 {[%clk 0:01:33]} 23. Rxf7 {[%clk 0:01:15]} 23... Bf6 {[%clk
0:01:32.9]} 24. c3 {[%clk 0:00:59.6]} 24... Rd7 {[%clk 0:01:22.1]} 25. Rxd7
{[%clk 0:00:56.9]} 25... Kxd7 {[%clk 0:01:21.9]} 26. e5 {[%clk 0:00:57.5]} 26...
Bd8 {[%clk 0:01:10.6]} 27. Rf1 {[%clk 0:00:50]} 27... Rf5 {[%clk 0:01:08.7]} 28.
Re1 {[%clk 0:00:38.1]} 28... Ke8 {[%clk 0:00:41.3]} 29. Kc2 {[%clk 0:00:36.9]}
29... Kf7 {[%clk 0:00:41.1]} 30. Kd3 {[%clk 0:00:32.8]} 30... Kg6 {[%clk
0:00:40.6]} 31. Re4 {[%clk 0:00:30.8]} 31... Kh5 {[%clk 0:00:39.8]} 32. Ke2
{[%clk 0:00:29.9]} 32... Bg5 {[%clk 0:00:37.1]} 33. c4 {[%clk 0:00:20.8]} 33...
a6 {[%clk 0:00:35]} 34. b4 {[%clk 0:00:20.6]} 34... Rf4 {[%clk 0:00:27.6]} 35.
Rxf4 {[%clk 0:00:18.9]} 35... Bxf4 {[%clk 0:00:27.5]} 36. Kd3 {[%clk 0:00:18.7]}
36... g5 {[%clk 0:00:19.7]} 37. Ke4 {[%clk 0:00:17.5]} 37... Kg6 {[%clk
0:00:19.6]} 38. d5 {[%clk 0:00:17.5]} 38... Kf7 {[%clk 0:00:18.4]} 39. d6 {[%clk
0:00:13.5]} 39... Ke8 {[%clk 0:00:18.3]} 40. a4 {[%clk 0:00:12.1]} 40... b5
{[%clk 0:00:17]} 41. axb5 {[%clk 0:00:10.3]} 41... axb5 {[%clk 0:00:16.8]} 42.
cxb5 {[%clk 0:00:10.4]} 42... cxb5 {[%clk 0:00:17.4]} 43. h3 {[%clk 0:00:09.3]}
43... gxh3 {[%clk 0:00:16.2]} 44. gxh3 {[%clk 0:00:10.2]} 44... Kd7 {[%clk
0:00:14.9]} 45. Be3 {[%clk 0:00:09.5]} 45... Bxe3 {[%clk 0:00:12.3]} 46. Kxe3
{[%clk 0:00:10.4]} 1-0